[Event "*** Titled Tuesday Blitz"]
[Site "Chess.com"]
[Date "2020.04.14"]
[Round "2"]
[White "Blitzking642"]
[Black "Witik"]
[Result "0-1"]
[WhiteElo "2386"]
[BlackElo "2730"]
[TimeControl "180+1"]
[EndTime "10:17:53 PDT"]
[Termination "Witik won on time"]

1. e4 {[%clk 0:03:00.9]} 1... c6 {[%clk 0:02:59.8]} 2. d4 {[%clk 0:02:58.6]}
2... d5 {[%clk 0:03:00.7]} 3. exd5 {[%clk 0:02:58.4]} 3... cxd5 {[%clk
0:03:00.7]} 4. Bd3 {[%clk 0:02:57.4]} 4... Nc6 {[%clk 0:03:00.4]} 5. c3 {[%clk
0:02:56.8]} 5... Qc7 {[%clk 0:03:00.5]} 6. Nf3 {[%clk 0:02:49]} 6... Bg4 {[%clk
0:02:56.9]} 7. O-O {[%clk 0:02:43.2]} 7... e6 {[%clk 0:02:56.9]} 8. Nbd2 {[%clk
0:02:36.1]} 8... Bd6 {[%clk 0:02:53.4]} 9. h3 {[%clk 0:02:10.2]} 9... Bh5 {[%clk
0:02:52.2]} 10. Re1 {[%clk 0:02:07.7]} 10... Nf6 {[%clk 0:02:47.8]} 11. Qe2
{[%clk 0:02:01.7]} 11... O-O {[%clk 0:02:29.1]} 12. g4 {[%clk 0:01:59]} 12...
Bg6 {[%clk 0:02:28.7]} 13. Bxg6 {[%clk 0:01:58.1]} 13... hxg6 {[%clk 0:02:27.6]}
14. Ne5 {[%clk 0:01:58.3]} 14... Nd7 {[%clk 0:02:20.7]} 15. Ndf3 {[%clk
0:01:54.4]} 15... Rfe8 {[%clk 0:02:11.7]} 16. Nxd7 {[%clk 0:01:40.5]} 16... Qxd7
{[%clk 0:02:11.2]} 17. Ne5 {[%clk 0:01:40.5]} 17... Bxe5 {[%clk 0:02:05.5]} 18.
dxe5 {[%clk 0:01:39.9]} 18... d4 {[%clk 0:02:06.4]} 19. Qe4 {[%clk 0:01:31.4]}
19... dxc3 {[%clk 0:01:29.2]} 20. bxc3 {[%clk 0:01:32.3]} 20... Rac8 {[%clk
0:01:25.9]} 21. Be3 {[%clk 0:01:27.7]} 21... b6 {[%clk 0:01:22.5]} 22. h4 {[%clk
0:01:12.6]} 22... Ne7 {[%clk 0:01:17.8]} 23. c4 {[%clk 0:01:04.2]} 23... Qa4
{[%clk 0:01:07.1]} 24. Rec1 {[%clk 0:00:54.9]} 24... Rc7 {[%clk 0:01:05.4]} 25.
Bg5 {[%clk 0:00:42.1]} 25... Rec8 {[%clk 0:00:58.8]} 26. h5 {[%clk 0:00:34.7]}
26... gxh5 {[%clk 0:00:57.2]} 27. Bxe7 {[%clk 0:00:27.1]} 27... Rxe7 {[%clk
0:00:53.8]} 28. gxh5 {[%clk 0:00:28]} 28... Rec7 {[%clk 0:00:53.2]} 29. h6
{[%clk 0:00:17.2]} 29... Rxc4 {[%clk 0:00:51.5]} 30. Rxc4 {[%clk 0:00:15.5]}
30... Rxc4 {[%clk 0:00:51]} 31. Qa8+ {[%clk 0:00:12]} 31... Kh7 {[%clk
0:00:50.8]} 32. hxg7 {[%clk 0:00:11.2]} 32... Rg4+ {[%clk 0:00:49.1]} 33. Kh1
{[%clk 0:00:08.5]} 33... Kxg7 {[%clk 0:00:21.7]} 34. Rg1 {[%clk 0:00:06.2]}
34... Rxg1+ {[%clk 0:00:17.8]} 35. Kxg1 {[%clk 0:00:07.1]} 35... Qxa2 {[%clk
0:00:17]} 36. Qg2+ {[%clk 0:00:06.9]} 36... Kf8 {[%clk 0:00:14.5]} 37. Qa8+
{[%clk 0:00:07.1]} 37... Kg7 {[%clk 0:00:14.9]} 38. Qg2+ {[%clk 0:00:07]} 38...
Kh6 {[%clk 0:00:12.8]} 39. Qh3+ {[%clk 0:00:04.5]} 39... Kg5 {[%clk 0:00:12.9]}
40. Qe3+ {[%clk 0:00:03.5]} 40... Kf5 {[%clk 0:00:12.4]} 41. Qd3+ {[%clk
0:00:01.5]} 41... Kxe5 {[%clk 0:00:12.3]} 42. Qe3+ {[%clk 0:00:01.7]} 42... Kd6
{[%clk 0:00:09]} 43. Qf3 {[%clk 0:00:02.1]} 43... Qb1+ {[%clk 0:00:08.1]} 44.
Kg2 {[%clk 0:00:01.6]} 44... Qg6+ {[%clk 0:00:07.8]} 0-1

[Event "*** Titled Tuesday Blitz"]
[Site "Chess.com"]
[Date "2020.04.14"]
[Round "2"]
[White "kasparicy"]
[Black "DenishevM"]
[Result "1-0"]
[WhiteElo "2324"]
[BlackElo "2610"]
[TimeControl "180+1"]
[EndTime "10:17:53 PDT"]
[Termination "kasparicy won by checkmate"]

1. e4 {[%clk 0:03:00.9]} 1... c5 {[%clk 0:02:59.4]} 2. Nf3 {[%clk 0:03:00.3]}
2... d6 {[%clk 0:02:59.9]} 3. d4 {[%clk 0:02:59.9]} 3... cxd4 {[%clk 0:03:00.8]}
4. Nxd4 {[%clk 0:03:00.8]} 4... Nf6 {[%clk 0:03:01.2]} 5. Nc3 {[%clk 0:03:01.2]}
5... a6 {[%clk 0:03:01.5]} 6. Qf3 {[%clk 0:02:51]} 6... Nbd7 {[%clk 0:02:56.6]}
7. g4 {[%clk 0:02:49.8]} 7... g6 {[%clk 0:02:52.4]} 8. Qg2 {[%clk 0:02:28.9]}
8... Ne5 {[%clk 0:02:36.3]} 9. g5 {[%clk 0:02:22.7]} 9... Nh5 {[%clk 0:02:29.2]}
10. f4 {[%clk 0:02:21.6]} 10... Nc6 {[%clk 0:02:24.8]} 11. Nxc6 {[%clk
0:02:13.9]} 11... bxc6 {[%clk 0:02:25.7]} 12. Be2 {[%clk 0:02:13.4]} 12... Qb6
{[%clk 0:02:16.9]} 13. Bd2 {[%clk 0:02:01.5]} 13... Qxb2 {[%clk 0:02:09]} 14.
O-O {[%clk 0:01:46.8]} 14... Qxc2 {[%clk 0:01:57.4]} 15. Bxh5 {[%clk 0:01:31]}
15... gxh5 {[%clk 0:01:58.3]} 16. Rac1 {[%clk 0:01:29.4]} 16... Qd3 {[%clk
0:01:54]} 17. Rf3 {[%clk 0:01:06.5]} 17... Qd4+ {[%clk 0:01:33.8]} 18. Be3
{[%clk 0:01:05.8]} 18... Qb4 {[%clk 0:01:31.6]} 19. Rf2 {[%clk 0:00:56.1]} 19...
Bg7 {[%clk 0:01:28]} 20. e5 {[%clk 0:00:56]} 20... O-O {[%clk 0:01:22.2]} 21.
Qxc6 {[%clk 0:00:46.6]} 21... Bb7 {[%clk 0:01:01.5]} 22. Nd5 {[%clk 0:00:39.1]}
22... Bxc6 {[%clk 0:00:55.3]} 23. Nxb4 {[%clk 0:00:37.4]} 23... Be4 {[%clk
0:00:55.8]} 24. exd6 {[%clk 0:00:20.5]} 24... exd6 {[%clk 0:00:56.7]} 25. f5
{[%clk 0:00:20.9]} 25... Be5 {[%clk 0:00:53]} 26. Re1 {[%clk 0:00:17.2]} 26...
Bc3 {[%clk 0:00:47.9]} 27. Bd2 {[%clk 0:00:16.1]} 27... Bxd2 {[%clk 0:00:33.7]}
28. Rxd2 {[%clk 0:00:17]} 28... Bxf5 {[%clk 0:00:34]} 29. Rxd6 {[%clk
0:00:17.4]} 29... a5 {[%clk 0:00:26.5]} 30. Nd5 {[%clk 0:00:16.9]} 30... Bg6
{[%clk 0:00:27.1]} 31. Nf6+ {[%clk 0:00:16.3]} 31... Kg7 {[%clk 0:00:27.5]} 32.
Re7 {[%clk 0:00:15.2]} 32... a4 {[%clk 0:00:25.3]} 33. h4 {[%clk 0:00:14.8]}
33... a3 {[%clk 0:00:24.7]} 34. Rdd7 {[%clk 0:00:15]} 34... Rab8 {[%clk
0:00:22.9]} 35. Rb7 {[%clk 0:00:14.3]} 35... Rxb7 {[%clk 0:00:22.3]} 36. Rxb7
{[%clk 0:00:15.2]} 36... Rc8 {[%clk 0:00:22.6]} 37. Ra7 {[%clk 0:00:11.8]} 37...
Rc1+ {[%clk 0:00:22.6]} 38. Kf2 {[%clk 0:00:12.3]} 38... Rc2+ {[%clk 0:00:23.5]}
39. Ke3 {[%clk 0:00:13.2]} 39... Rxa2 {[%clk 0:00:24.4]} 40. Kd4 {[%clk
0:00:12.4]} 40... Ra1 {[%clk 0:00:21.9]} 41. Ra8 {[%clk 0:00:11.5]} 41... Rd1+
{[%clk 0:00:15.9]} 42. Kc3 {[%clk 0:00:11.7]} 42... Rc1+ {[%clk 0:00:06.4]} 43.
Kb4 {[%clk 0:00:11.7]} 43... Rb1+ {[%clk 0:00:06.2]} 44. Ka5 {[%clk 0:00:11.9]}
44... h6 {[%clk 0:00:01.1]} 45. Rg8# {[%clk 0:00:11.3]} 1-0

[Event "*** Titled Tuesday Blitz"]
[Site "Chess.com"]
[Date "2020.04.14"]
[Round "2"]
[White "SanQui14"]
[Black "kingmonkey2006"]
[Result "1-0"]
[WhiteElo "2318"]
[BlackElo "2591"]
[TimeControl "180+1"]
[EndTime "10:17:54 PDT"]
[Termination "SanQui14 won by resignation"]

1. b3 {[%clk 0:03:00.9]} 1... e5 {[%clk 0:02:59.1]} 2. Bb2 {[%clk 0:03:01.5]}
2... Nc6 {[%clk 0:02:59.6]} 3. c4 {[%clk 0:03:02.1]} 3... Nf6 {[%clk 0:02:59.1]}
4. Nf3 {[%clk 0:03:02.6]} 4... d6 {[%clk 0:02:59]} 5. g3 {[%clk 0:03:03.2]} 5...
Be7 {[%clk 0:02:59.4]} 6. Bg2 {[%clk 0:03:03.8]} 6... O-O {[%clk 0:03:00]} 7.
O-O {[%clk 0:03:04.4]} 7... Bf5 {[%clk 0:03:00.3]} 8. d3 {[%clk 0:03:02.8]} 8...
Re8 {[%clk 0:02:54.9]} 9. h3 {[%clk 0:03:02.5]} 9... Qd7 {[%clk 0:02:55]} 10.
Kh2 {[%clk 0:03:02.5]} 10... Bf8 {[%clk 0:02:53.1]} 11. Nbd2 {[%clk 0:03:01.4]}
11... Bg6 {[%clk 0:02:52.4]} 12. Nh4 {[%clk 0:02:58.3]} 12... d5 {[%clk
0:02:49.9]} 13. Nxg6 {[%clk 0:02:57.8]} 13... hxg6 {[%clk 0:02:50.3]} 14. cxd5
{[%clk 0:02:58.2]} 14... Nxd5 {[%clk 0:02:51.2]} 15. Rc1 {[%clk 0:02:57.4]}
15... Rac8 {[%clk 0:02:29.4]} 16. Ne4 {[%clk 0:02:53.3]} 16... b6 {[%clk
0:02:20.4]} 17. e3 {[%clk 0:02:42.7]} 17... Ncb4 {[%clk 0:01:58.8]} 18. a3
{[%clk 0:02:38.4]} 18... Na6 {[%clk 0:01:58.9]} 19. Qc2 {[%clk 0:02:31]} 19...
c5 {[%clk 0:01:58.8]} 20. Nd2 {[%clk 0:02:30.1]} 20... Rcd8 {[%clk 0:01:57.5]}
21. Nc4 {[%clk 0:02:27.2]} 21... f6 {[%clk 0:01:57.1]} 22. Rfd1 {[%clk
0:02:21.9]} 22... Qe6 {[%clk 0:01:48.6]} 23. d4 {[%clk 0:02:15]} 23... cxd4
{[%clk 0:01:46.6]} 24. exd4 {[%clk 0:02:15.9]} 24... e4 {[%clk 0:01:46.8]} 25.
Re1 {[%clk 0:02:12.5]} 25... f5 {[%clk 0:01:46.4]} 26. f3 {[%clk 0:02:01.5]}
26... e3 {[%clk 0:01:30.9]} 27. f4 {[%clk 0:01:56.2]} 27... Nac7 {[%clk
0:01:11.9]} 28. Ne5 {[%clk 0:01:50.3]} 28... Nb5 {[%clk 0:00:57.3]} 29. a4
{[%clk 0:01:27.4]} 29... Nbc7 {[%clk 0:00:27.6]} 30. Qc4 {[%clk 0:01:00.7]}
30... Bd6 {[%clk 0:00:23.7]} 31. Re2 {[%clk 0:00:48.9]} 31... a6 {[%clk
0:00:24]} 32. Qc6 {[%clk 0:00:36.8]} 32... Kh7 {[%clk 0:00:23.7]} 33. Qb7 {[%clk
0:00:34.4]} 33... Rb8 {[%clk 0:00:24.1]} 34. Qc6 {[%clk 0:00:34.4]} 34... Rbc8
{[%clk 0:00:24.5]} 35. Rec2 {[%clk 0:00:31.7]} 35... Rcd8 {[%clk 0:00:24.6]} 36.
Qb7 {[%clk 0:00:31.3]} 36... Rb8 {[%clk 0:00:24.7]} 37. Qc6 {[%clk 0:00:31.8]}
37... Nb4 {[%clk 0:00:25.2]} 38. Qf3 {[%clk 0:00:26.1]} 38... Nxc2 {[%clk
0:00:25.4]} 39. Rxc2 {[%clk 0:00:27]} 39... Rbc8 {[%clk 0:00:24.9]} 40. Qxe3
{[%clk 0:00:24.4]} 40... Nd5 {[%clk 0:00:25.5]} 41. Qe2 {[%clk 0:00:24.4]} 41...
Rxc2 {[%clk 0:00:25.5]} 42. Qxc2 {[%clk 0:00:25.3]} 42... Ne3 {[%clk 0:00:25.4]}
43. Qe2 {[%clk 0:00:15.8]} 43... Nxg2 {[%clk 0:00:25.6]} 44. Qxg2 {[%clk
0:00:16.2]} 44... Qxb3 {[%clk 0:00:25.3]} 45. g4 {[%clk 0:00:16.5]} 45... fxg4
{[%clk 0:00:19.4]} 46. hxg4 {[%clk 0:00:15.6]} 46... Bxe5 {[%clk 0:00:19.3]} 47.
fxe5 {[%clk 0:00:15.9]} 47... Rc8 {[%clk 0:00:19.2]} 48. Qh3+ {[%clk 0:00:15.6]}
48... Kg8 {[%clk 0:00:19.3]} 49. Qxb3+ {[%clk 0:00:15.5]} 1-0

[Event "*** Titled Tuesday Blitz"]
[Site "Chess.com"]
[Date "2020.04.14"]
[Round "2"]
[White "GracefulYear"]
[Black "pedroholly22"]
[Result "0-1"]
[WhiteElo "2686"]
[BlackElo "2351"]
[TimeControl "180+1"]
[EndTime "10:17:55 PDT"]
[Termination "pedroholly22 won by resignation"]

1. d4 {[%clk 0:03:00.9]} 1... Nf6 {[%clk 0:02:56.3]} 2. c4 {[%clk 0:03:01.8]}
2... e6 {[%clk 0:02:55.5]} 3. Nf3 {[%clk 0:03:02.7]} 3... c5 {[%clk 0:02:52.6]}
4. d5 {[%clk 0:03:00.1]} 4... exd5 {[%clk 0:02:52.9]} 5. cxd5 {[%clk 0:02:59.7]}
5... d6 {[%clk 0:02:53.5]} 6. Nc3 {[%clk 0:02:59.3]} 6... g6 {[%clk 0:02:53.9]}
7. g3 {[%clk 0:02:57.7]} 7... Bg7 {[%clk 0:02:53.9]} 8. Bg2 {[%clk 0:02:58.3]}
8... O-O {[%clk 0:02:54.5]} 9. O-O {[%clk 0:02:58.9]} 9... Re8 {[%clk
0:02:51.8]} 10. Qc2 {[%clk 0:02:57.3]} 10... Bf5 {[%clk 0:02:48.4]} 11. Qb3
{[%clk 0:02:57.3]} 11... Re7 {[%clk 0:02:29.8]} 12. Bg5 {[%clk 0:02:49.3]} 12...
h6 {[%clk 0:02:25.8]} 13. Bxf6 {[%clk 0:02:45.8]} 13... Bxf6 {[%clk 0:02:25.2]}
14. Nd2 {[%clk 0:02:33.6]} 14... a6 {[%clk 0:02:24]} 15. e4 {[%clk 0:02:32.8]}
15... Bc8 {[%clk 0:02:18.6]} 16. a4 {[%clk 0:02:31.8]} 16... Nd7 {[%clk
0:02:17.7]} 17. a5 {[%clk 0:02:29.9]} 17... Ne5 {[%clk 0:02:15.8]} 18. Kh1
{[%clk 0:02:26.5]} 18... h5 {[%clk 0:02:12.7]} 19. f4 {[%clk 0:02:25.4]} 19...
Ng4 {[%clk 0:02:12.1]} 20. Nc4 {[%clk 0:02:25.5]} 20... h4 {[%clk 0:02:04]} 21.
Rae1 {[%clk 0:02:23.5]} 21... hxg3 {[%clk 0:02:02.4]} 22. hxg3 {[%clk
0:02:23.8]} 22... Kg7 {[%clk 0:01:58.1]} 23. Rf3 {[%clk 0:02:12.4]} 23... Qh8+
{[%clk 0:01:47.7]} 24. Kg1 {[%clk 0:02:11.7]} 24... Bd4+ {[%clk 0:01:47.6]} 25.
Kf1 {[%clk 0:01:57.5]} 25... Nh2+ {[%clk 0:01:45.7]} 26. Ke2 {[%clk 0:01:56.7]}
26... Nxf3 {[%clk 0:01:43.7]} 27. Bxf3 {[%clk 0:01:57.6]} 27... Qh2+ {[%clk
0:01:41.3]} 28. Kd1 {[%clk 0:01:57.4]} 28... Qxg3 {[%clk 0:01:40.6]} 29. Ne2
{[%clk 0:01:55.8]} 29... Qf2 {[%clk 0:01:35.7]} 30. Nxd6 {[%clk 0:01:46.9]}
30... Bd7 {[%clk 0:01:27.8]} 31. e5 {[%clk 0:01:32.5]} 31... Ba4 {[%clk
0:00:59.4]} 32. Qxa4 {[%clk 0:01:27.4]} 32... Qxf3 {[%clk 0:00:59.4]} 33. Qc2
{[%clk 0:01:18]} 33... Rh8 {[%clk 0:00:56.7]} 34. f5 {[%clk 0:01:13]} 34... Rxe5
{[%clk 0:00:50.9]} 35. fxg6 {[%clk 0:01:03.5]} 35... fxg6 {[%clk 0:00:50.6]} 36.
Nc4 {[%clk 0:00:59.6]} 36... Rxd5 {[%clk 0:00:43.1]} 37. Nd2 {[%clk 0:00:57.5]}
37... Qf5 {[%clk 0:00:34.1]} 38. Nxd4 {[%clk 0:00:52.4]} 38... Rxd4 {[%clk
0:00:20.8]} 39. Qb3 {[%clk 0:00:49.6]} 39... Rhd8 {[%clk 0:00:20.2]} 40. Re7+
{[%clk 0:00:46.6]} 40... Kf8 {[%clk 0:00:20]} 41. Re2 {[%clk 0:00:17.7]} 41...
Qf1+ {[%clk 0:00:19.2]} 42. Kc2 {[%clk 0:00:13.8]} 42... Qxe2 {[%clk 0:00:19.4]}
43. Qf3+ {[%clk 0:00:14.3]} 43... Qxf3 {[%clk 0:00:19]} 44. Nxf3 {[%clk
0:00:15.2]} 44... Rf4 {[%clk 0:00:19]} 45. Ne5 {[%clk 0:00:15.5]} 45... Kg7
{[%clk 0:00:18.4]} 46. Nd3 {[%clk 0:00:14]} 46... Rdf8 {[%clk 0:00:18.7]} 47.
Nxc5 {[%clk 0:00:13.7]} 47... Rc4+ {[%clk 0:00:18.6]} 48. Kb3 {[%clk 0:00:13.4]}
48... Rxc5 {[%clk 0:00:19.5]} 49. Kb4 {[%clk 0:00:14.2]} 49... Rff5 {[%clk
0:00:19.9]} 50. b3 {[%clk 0:00:15.1]} 50... Rb5+ {[%clk 0:00:20.3]} 51. Kc4
{[%clk 0:00:15.5]} 51... Rxa5 {[%clk 0:00:21]} 52. b4 {[%clk 0:00:16.4]} 52...
Rab5 {[%clk 0:00:21.6]} 53. Kd4 {[%clk 0:00:17.3]} 53... Rxb4+ {[%clk
0:00:21.9]} 54. Kd3 {[%clk 0:00:17.3]} 54... Rbf4 {[%clk 0:00:22.1]} 55. Ke3
{[%clk 0:00:18.2]} 55... Rh4 {[%clk 0:00:22.2]} 56. Ke2 {[%clk 0:00:18.6]} 56...
Rb4 {[%clk 0:00:22.4]} 57. Ke3 {[%clk 0:00:19.5]} 57... Ra5 {[%clk 0:00:22.7]}
58. Ke2 {[%clk 0:00:20.4]} 58... Ra3 {[%clk 0:00:23.1]} 0-1

[Event "*** Titled Tuesday Blitz"]
[Site "Chess.com"]
[Date "2020.04.14"]
[Round "2"]
[White "Vuk2000"]
[Black "GeorgMeier"]
[Result "0-1"]
[WhiteElo "2617"]
[BlackElo "3057"]
[TimeControl "180+1"]
[EndTime "10:17:56 PDT"]
[Termination "GeorgMeier won by resignation"]

1. d4 {[%clk 0:03:00.9]} 1... e6 {[%clk 0:02:57]} 2. Nf3 {[%clk 0:03:00.6]} 2...
Nf6 {[%clk 0:02:56.8]} 3. Bg5 {[%clk 0:03:00.1]} 3... d5 {[%clk 0:02:50.1]} 4.
c4 {[%clk 0:02:44.3]} 4... Be7 {[%clk 0:02:48.2]} 5. Nc3 {[%clk 0:02:43.7]} 5...
h6 {[%clk 0:02:47.8]} 6. Bxf6 {[%clk 0:02:43.5]} 6... Bxf6 {[%clk 0:02:48.7]} 7.
e3 {[%clk 0:02:44.1]} 7... O-O {[%clk 0:02:48.9]} 8. Qc2 {[%clk 0:02:44.3]} 8...
c6 {[%clk 0:02:47.1]} 9. Bd3 {[%clk 0:02:39.7]} 9... Nd7 {[%clk 0:02:46]} 10.
O-O {[%clk 0:02:39.2]} 10... dxc4 {[%clk 0:02:43.6]} 11. Bxc4 {[%clk 0:02:39.1]}
11... e5 {[%clk 0:02:44.1]} 12. Rfd1 {[%clk 0:02:37.3]} 12... exd4 {[%clk
0:02:34.5]} 13. Nxd4 {[%clk 0:02:36.7]} 13... Qa5 {[%clk 0:02:14.4]} 14. Ne4
{[%clk 0:02:29.9]} 14... Be7 {[%clk 0:02:09.4]} 15. Ng3 {[%clk 0:02:19.5]} 15...
Nf6 {[%clk 0:01:43.6]} 16. a3 {[%clk 0:02:16.1]} 16... Re8 {[%clk 0:01:34]} 17.
b4 {[%clk 0:02:13]} 17... Qc7 {[%clk 0:01:25]} 18. Rac1 {[%clk 0:01:55.5]} 18...
Bf8 {[%clk 0:01:20]} 19. Qb3 {[%clk 0:01:39.5]} 19... g6 {[%clk 0:01:03.1]} 20.
a4 {[%clk 0:01:30.6]} 20... Kg7 {[%clk 0:00:35.9]} 21. a5 {[%clk 0:01:30.3]}
21... a6 {[%clk 0:00:33.9]} 22. Rd2 {[%clk 0:01:19.7]} 22... h5 {[%clk
0:00:26.1]} 23. Qc3 {[%clk 0:01:17.1]} 23... h4 {[%clk 0:00:23.5]} 24. Nf1
{[%clk 0:01:17.3]} 24... Qe5 {[%clk 0:00:20.5]} 25. Qb3 {[%clk 0:01:09.5]} 25...
Re7 {[%clk 0:00:18]} 26. Nf3 {[%clk 0:01:09.5]} 26... Qh5 {[%clk 0:00:17.3]} 27.
Rd4 {[%clk 0:01:07]} 27... Bg4 {[%clk 0:00:17.1]} 28. Nxh4 {[%clk 0:00:59.7]}
28... Qxh4 {[%clk 0:00:15.5]} 29. h3 {[%clk 0:01:00.1]} 29... Ne4 {[%clk
0:00:15.4]} 30. Qb2 {[%clk 0:00:49.4]} 30... Qxf2+ {[%clk 0:00:15.5]} 31. Qxf2
{[%clk 0:00:49.3]} 31... Nxf2 {[%clk 0:00:16.4]} 32. Kxf2 {[%clk 0:00:47.4]}
32... Bd7 {[%clk 0:00:15.9]} 33. Nd2 {[%clk 0:00:43.8]} 33... Rc8 {[%clk
0:00:15.1]} 34. Nf3 {[%clk 0:00:41.5]} 34... Be8 {[%clk 0:00:14.8]} 35. Bb3
{[%clk 0:00:37.6]} 35... Rec7 {[%clk 0:00:14.8]} 36. Rdc4 {[%clk 0:00:33.1]}
36... c5 {[%clk 0:00:14.9]} 37. Ne5 {[%clk 0:00:29.1]} 37... Bd6 {[%clk
0:00:10.4]} 38. Nd3 {[%clk 0:00:27.2]} 38... cxb4 {[%clk 0:00:10.7]} 39. Rxc7
{[%clk 0:00:21.5]} 39... Rxc7 {[%clk 0:00:11.6]} 40. Rxc7 {[%clk 0:00:21.7]}
40... Bxc7 {[%clk 0:00:12.5]} 41. Bd5 {[%clk 0:00:21.9]} 41... Bb5 {[%clk
0:00:10.1]} 42. Nc5 {[%clk 0:00:20.5]} 42... Bxa5 {[%clk 0:00:10]} 43. Bxb7
{[%clk 0:00:20.5]} 43... Bb6 {[%clk 0:00:10.2]} 44. Nxa6 {[%clk 0:00:15.9]}
44... b3 {[%clk 0:00:09.8]} 45. Nb4 {[%clk 0:00:16.1]} 45... Bc5 {[%clk
0:00:10]} 46. Nd5 {[%clk 0:00:12.3]} 46... Bd3 {[%clk 0:00:10.4]} 47. Nc3 {[%clk
0:00:11.2]} 47... b2 {[%clk 0:00:10.7]} 48. Bd5 {[%clk 0:00:10.9]} 48... Bb4
{[%clk 0:00:10.8]} 0-1

[Event "*** Titled Tuesday Blitz"]
[Site "Chess.com"]
[Date "2020.04.14"]
[Round "2"]
[White "Saxar85"]
[Black "Msb2"]
[Result "1-0"]
[WhiteElo "2620"]
[BlackElo "2902"]
[TimeControl "180+1"]
[EndTime "10:17:56 PDT"]
[Termination "Saxar85 won on time"]

1. Nf3 {[%clk 0:03:00.9]} 1... d5 {[%clk 0:02:59.9]} 2. g3 {[%clk 0:03:00.2]}
2... Nc6 {[%clk 0:02:59.9]} 3. d4 {[%clk 0:02:58.1]} 3... Bf5 {[%clk 0:03:00.4]}
4. Bg2 {[%clk 0:02:56.1]} 4... Nb4 {[%clk 0:03:00.4]} 5. Na3 {[%clk 0:02:54.6]}
5... e6 {[%clk 0:03:00.8]} 6. O-O {[%clk 0:02:47.8]} 6... Be7 {[%clk 0:03:01]}
7. Ne5 {[%clk 0:02:38.5]} 7... Nf6 {[%clk 0:02:53.8]} 8. c3 {[%clk 0:02:34.5]}
8... Nc6 {[%clk 0:02:53.7]} 9. Qa4 {[%clk 0:02:31]} 9... O-O {[%clk 0:02:48.6]}
10. Nxc6 {[%clk 0:02:30.3]} 10... bxc6 {[%clk 0:02:49.5]} 11. Qxc6 {[%clk
0:02:29.9]} 11... Rb8 {[%clk 0:02:39.1]} 12. Qa4 {[%clk 0:02:21.6]} 12... c5
{[%clk 0:02:38]} 13. dxc5 {[%clk 0:02:13.3]} 13... Bxc5 {[%clk 0:02:38.9]} 14.
b4 {[%clk 0:02:13]} 14... Bb6 {[%clk 0:02:35.9]} 15. Bf4 {[%clk 0:02:07.4]}
15... Rc8 {[%clk 0:02:29.4]} 16. Rac1 {[%clk 0:02:06.6]} 16... Ne4 {[%clk
0:01:47.6]} 17. c4 {[%clk 0:02:06]} 17... dxc4 {[%clk 0:01:22.2]} 18. Nxc4
{[%clk 0:01:55.8]} 18... Bd4 {[%clk 0:01:07.6]} 19. e3 {[%clk 0:01:48.3]} 19...
Bf6 {[%clk 0:01:07]} 20. Qxa7 {[%clk 0:01:26.5]} 20... Nc3 {[%clk 0:00:54.2]}
21. Rxc3 {[%clk 0:01:22.4]} 21... Bxc3 {[%clk 0:00:55.1]} 22. Nd6 {[%clk
0:01:21.3]} 22... Rc7 {[%clk 0:00:40.2]} 23. Nb7 {[%clk 0:01:15]} 23... e5
{[%clk 0:00:35.4]} 24. Bxe5 {[%clk 0:00:51.9]} 24... Bxe5 {[%clk 0:00:33.6]} 25.
Nxd8 {[%clk 0:00:51.5]} 25... Rxa7 {[%clk 0:00:30.2]} 26. Nc6 {[%clk 0:00:51.6]}
26... Bb8 {[%clk 0:00:26.9]} 27. Nxa7 {[%clk 0:00:51.2]} 27... Bxa7 {[%clk
0:00:27.8]} 28. a4 {[%clk 0:00:51.1]} 28... Rb8 {[%clk 0:00:26.7]} 29. b5 {[%clk
0:00:51.2]} 29... Bb6 {[%clk 0:00:26.8]} 30. Rc1 {[%clk 0:00:49.3]} 30... Kf8
{[%clk 0:00:25.7]} 31. Bd5 {[%clk 0:00:48.6]} 31... Ke7 {[%clk 0:00:24.5]} 32.
Rc6 {[%clk 0:00:48.5]} 32... Bd7 {[%clk 0:00:23.8]} 33. Rc4 {[%clk 0:00:47.5]}
33... Be6 {[%clk 0:00:24]} 34. Bxe6 {[%clk 0:00:46.1]} 34... fxe6 {[%clk
0:00:23.7]} 35. Kg2 {[%clk 0:00:45.4]} 35... Kd7 {[%clk 0:00:22]} 36. Kf3 {[%clk
0:00:44.2]} 36... Rf8+ {[%clk 0:00:18.9]} 37. Ke2 {[%clk 0:00:44]} 37... Rc8
{[%clk 0:00:18.8]} 38. Kd3 {[%clk 0:00:42.8]} 38... Rxc4 {[%clk 0:00:09.3]} 39.
Kxc4 {[%clk 0:00:42.6]} 39... Ba5 {[%clk 0:00:10.2]} 40. f4 {[%clk 0:00:38.2]}
40... Kd6 {[%clk 0:00:10.3]} 41. e4 {[%clk 0:00:37.3]} 41... Be1 {[%clk
0:00:05.4]} 42. g4 {[%clk 0:00:33.6]} 42... g6 {[%clk 0:00:05.5]} 43. h3 {[%clk
0:00:30.2]} 43... h5 {[%clk 0:00:05.6]} 44. gxh5 {[%clk 0:00:27.9]} 44... gxh5
{[%clk 0:00:06.5]} 45. f5 {[%clk 0:00:27.1]} 45... exf5 {[%clk 0:00:06]} 46.
exf5 {[%clk 0:00:27.3]} 46... Ba5 {[%clk 0:00:05]} 47. Kd4 {[%clk 0:00:23.2]}
47... Be1 {[%clk 0:00:03.9]} 48. Ke4 {[%clk 0:00:22.3]} 48... Bb4 {[%clk
0:00:01.7]} 49. Kf4 {[%clk 0:00:21.1]} 49... Bd2+ {[%clk 0:00:01.5]} 50. Ke4
{[%clk 0:00:20.2]} 1-0